fUST/lending_fUST_20240508
["ID","MTS","AMOUNT","RATE_DAILY","PERIOD"]
[326630992,1715166649143,-3014.78962612,0.00033882,2]
[326630993,1715166649154,-1004.37629347,0.00033882,2]
[326630994,1715166649165,-971.0572004,0.00033882,7]
[326630995,1715166650649,-520.95,0.00033882,7]
[326630996,1715166650663,-1406.94976319,0.00033882,7]
[326630997,1715166650675,-2593.96348439,0.00033882,2]
[326630998,1715166650687,-88034.99049108,0.00033882,2]
[326630999,1715166650698,-10716.83861418,0.00033882,5]
[326631000,1715166723532,214.12308468,9.999e-05,2]
[326631001,1715166723559,265.79924189,9.999e-05,2]
[326631002,1715166723581,44.19221385,9.999e-05,2]
[326631006,1715167016705,27944.50386583,0.00026,120]
[326631008,1715167402807,524.11454042,9.999e-05,2]
[326631012,1715167626675,-155.80778615,0.0001589,2]
[326631013,1715167634159,-10.71459085,0.0001589,2]
[326631014,1715167636226,-160.413977,0.0001589,2]
[326631015,1715167637770,-251.35208915,0.00018034,2]
[326631016,1715167648965,-272.76245127,0.00018034,2]
[326631017,1715167650118,-198.443431,0.00018035,2]
[326631018,1715167652086,-79.77074529,0.00018039,2]
[326631019,1715167751359,-101.71352171,0.00018039,2]
[326631020,1715167752596,-154.58262691,0.00018268,2]
[326631021,1715167754528,-341.60073277,0.0001923,2]
[326631022,1715167755885,-5312.52210828,0.0001923,2]
[326631023,1715167757568,-24900.0,0.00019231,2]
[326631024,1715167757613,154.77278311,0.00019229,2]
[326631104,1715167844353,-154.86030484,0.00019636,2]
[326631106,1715167844363,-189.19455455,0.00019637,2]
[326631108,1715167844375,-1.66775845,0.00019637,2]
[326631110,1715167844385,-362.20085629,0.00019998,2]
[326631112,1715167844395,-412.60897844,0.00019998,2]
[326631115,1715167844405,-833.36015009,0.00019998,2]
[326631117,1715167844415,-816.12984113,0.00019998,2]
[326631120,1715167844425,-744.35757128,0.00019998,2]
[326631122,1715167844435,-893.97688809,0.00019998,2]
[326631124,1715167844444,-1203.10973839,0.00019998,2]
[326631126,1715167844454,-940.45532708,0.00019998,2]
[326631128,1715167844463,-154.73694719,0.00019998,2]
[326631129,1715167844473,-521.74355414,0.00019998,2]
[326631131,1715167844482,-556.12169485,0.00019998,2]
[326631133,1715167844491,-284.29807878,0.00019998,2]
[326631135,1715167844500,-154.79866913,0.00019998,2]
[326631137,1715167844510,-155.06122169,0.00019998,2]
[326631138,1715167844519,-678.3232697,0.00019999,2]
[326631140,1715167844528,-11768.35708504,0.00019999,2]
[326631142,1715167844538,-500.0,0.00019999,2]
[326631144,1715167844551,-500.0,0.00019999,2]
[326631146,1715167844561,-500.0,0.00019999,2]
[326631148,1715167844570,-500.0,0.00019999,2]
[326631149,1715167844580,-500.0,0.00019999,2]
[326631151,1715167844590,-219.2383745,0.00019999,2]
[326631153,1715167844600,-67507.49755129,0.0002,2]
[326631155,1715167844610,-233.40204133,0.00020811,2]
[326631157,1715167844620,-469.39449574,0.0002091,2]
[326631159,1715167844635,-584.11436245,0.0002091,2]
[326631161,1715167844645,-154.73694719,0.00020911,2]
[326631163,1715167844654,-154.73694719,0.00020911,2]
[326631165,1715167844663,-154.73694719,0.00020911,2]
[326631166,1715167844672,-248.94675288,0.00020911,2]
[326631168,1715167844682,-200.0,0.00020911,2]
[326631169,1715167844692,-154.73694719,0.00020911,2]
[326631170,1715167844701,-154.73694719,0.00020911,2]
[326631171,1715167844711,-154.73694719,0.00020911,2]
[326631172,1715167844720,-154.73694719,0.00020911,2]
[326631173,1715167844729,-409.6661174,0.00020911,2]
[326631174,1715167844739,-248.03587545,0.00020912,2]
[326631175,1715167844748,-154.73694719,0.00020912,2]
[326631176,1715167844759,-166.666666,0.00021918,2]
[326631177,1715167844769,-159.42165086,0.00022,2]
[326631178,1715167844779,-992.76940219,0.00022,2]
[326631179,1715167844789,-166.666666,0.00022431,2]
[326631180,1715167844799,-166.666666,0.00022944,2]
[326631181,1715167844808,-714.82665538,0.00023,2]
[326631182,1715167844818,-154.58262691,0.00023,2]
[326631183,1715167844828,-166.666666,0.00023456,2]
[326631184,1715167844838,-150.0,0.000239,2]
[326631185,1715167844847,-166.666666,0.00023969,2]
[326631186,1715167844857,-166.666666,0.00024482,2]
[326631187,1715167844867,-500.0,0.00024657,2]
[326631188,1715167844877,-500.0,0.00024657,2]
[326631189,1715167844889,-1000.0,0.00024657,2]
[326631190,1715167844899,-240.44820259,0.00024657,2]
[326631191,1715167844909,-500.0,0.00024657,2]
[326631192,1715167844919,-500.0,0.00024657,2]
[326631193,1715167844929,-500.0,0.00024657,2]
[326631194,1715167844940,-429.2642034,0.00024657,2]
[326631195,1715167844950,-260.22606449,0.00024657,2]
[326631196,1715167844959,-500.0,0.00024657,2]
[326631197,1715167844969,-500.0,0.00024657,2]
[326631198,1715167844978,-300.0,0.00024657,2]
[326631199,1715167844988,-160.0784263,0.00024657,2]
[326631200,1715167844997,-500.0,0.00024657,2]
[326631201,1715167845007,-501.06353371,0.00024657,2]
[326631202,1715167845016,-500.0,0.00024657,2]
[326631203,1715167845026,-500.0,0.00024657,2]
[326631204,1715167845036,-500.0,0.00024657,2]
[326631205,1715167845046,-500.0,0.00024657,2]
[326631206,1715167845055,-500.0,0.00024657,2]
[326631207,1715167845065,-500.0,0.00024657,2]
[326631208,1715167845075,-500.0,0.00024657,2]
[326631209,1715167845086,-500.0,0.00024657,2]
[326631210,1715167845096,-500.0,0.00024657,2]
[326631211,1715167845106,-500.0,0.00024657,2]
[326631212,1715167845116,-620.36,0.00024657,2]
[326631213,1715167845126,-500.0,0.00024657,2]
[326631214,1715167845141,-500.0,0.00024657,2]
[326631215,1715167845151,-631.17,0.00024657,2]
[326631216,1715167845160,-500.0,0.00024657,2]
[326631217,1715167845170,-154.7215013,0.00024657,2]
[326631218,1715167845179,-500.0,0.00024657,2]
[326631219,1715167845189,-500.0,0.00024657,2]
[326631220,1715167845198,-500.0,0.00024657,2]
[326631221,1715167845208,-500.0,0.00024657,2]
[326631222,1715167845218,-500.0,0.00024657,2]
[326631223,1715167845228,-500.0,0.00024657,2]
[326631224,1715167845238,-500.0,0.00024657,2]
[326631225,1715167845248,-617.84910359,0.00024657,2]
[326631226,1715167845258,-500.0,0.00024657,2]
[326631227,1715167845268,-500.0,0.00024657,2]
[326631228,1715167845278,-500.0,0.00024657,2]
[326631229,1715167845288,-500.0,0.00024657,2]
[326631230,1715167845298,-500.0,0.00024657,2]
[326631231,1715167845307,-500.0,0.00024657,2]
[326631232,1715167845318,-500.0,0.00024657,2]
[326631233,1715167845327,-502.08519115,0.00024657,2]
[326631234,1715167845338,-500.0,0.00024657,2]
[326631235,1715167845348,-500.0,0.00024657,2]
[326631236,1715167845358,-500.0,0.00024657,2]
[326631237,1715167845368,-500.0,0.00024657,2]
[326631238,1715167845383,-500.0,0.00024657,2]
[326631239,1715167845392,-500.0,0.00024657,2]
[326631240,1715167845402,-500.0,0.00024657,2]
[326631241,1715167845412,-500.0,0.00024657,2]
[326631242,1715167845421,-425.0746629,0.00024657,2]
[326631243,1715167845458,83.39546193,9.999e-05,2]
[326631244,1715167845483,242.02466203,9.999e-05,2]
[326631245,1715167845505,228.13515676,9.999e-05,2]
[326631246,1715167845526,150.0,9.999e-05,2]
[326631247,1715167845553,218.29659128,9.999e-05,2]
[326631248,1715167845576,160.849909,9.999e-05,2]
[326631249,1715167845605,496.0525076,9.999e-05,2]
[326631251,1715167847763,-74.9253371,0.00024657,2]
[326631258,1715167847774,-500.0,0.00024657,2]
[326631267,1715167847784,-500.0,0.00024657,2]
[326631274,1715167847795,-500.0,0.00024657,2]
[326631281,1715167847805,-500.0,0.00024657,2]
[326631286,1715167847816,-447.46239348,0.00024657,2]
[326631291,1715167847826,-254.11226942,0.00024657,2]
[326631296,1715167847839,-245.88773058,0.00024657,2]
[326631301,1715167847850,-500.0,0.00024657,2]
[326631306,1715167847860,-533.28,0.00024657,2]
[326631310,1715167847871,-500.0,0.00024657,2]
[326631314,1715167847884,-500.0,0.00024657,2]
[326631317,1715167847894,-612.07,0.00024657,2]
[326631320,1715167847904,-568.34,0.00024657,2]
[326631323,1715167847915,-500.0,0.00024657,2]
[326631326,1715167847925,-500.0,0.00024657,2]
[326631329,1715167847936,-597.12512302,0.00024657,2]
[326631332,1715167847950,-500.0,0.00024657,2]
[326631335,1715167847960,-500.0,0.00024657,2]
[326631338,1715167847971,-355.64454936,0.00024657,2]
[326631342,1715167847984,-144.35545064,0.00024657,2]
[326631345,1715167847994,-500.0,0.00024657,2]
[326631348,1715167848004,-500.0,0.00024657,2]
[326631351,1715167848015,-611.28,0.00024657,2]
[326631354,1715167848025,-500.0,0.00024657,2]
[326631357,1715167848035,-500.0,0.00024657,2]
[326631360,1715167848044,-500.0,0.00024657,2]
[326631363,1715167848054,-500.0,0.00024657,2]
[326631366,1715167848063,-500.0,0.00024657,2]
[326631368,1715167848074,-500.88056788,0.00024657,2]
[326631370,1715167848084,-500.0,0.00024657,2]
[326631372,1715167848094,-500.0,0.00024657,2]
[326631373,1715167848104,-502.13980301,0.00024657,2]
[326631375,1715167848114,-500.0,0.00024657,2]
[326631377,1715167848125,-500.0,0.00024657,2]
[326631379,1715167848139,-500.0,0.00024657,2]
[326631381,1715167848149,-403.47188877,0.00024657,2]
[326631383,1715167848160,-519.59,0.00024657,2]
[326631385,1715167848171,-500.0,0.00024657,2]
[326631387,1715167848182,-500.0,0.00024657,2]
[326631389,1715167848192,-500.0,0.00024657,2]
[326631391,1715167848202,-500.0,0.00024657,2]
[326631393,1715167848213,-500.0,0.00024657,2]
[326631395,1715167848223,-500.0,0.00024657,2]
[326631397,1715167848233,-500.0,0.00024657,2]
[326631399,1715167848243,-500.0,0.00024657,2]
[326631400,1715167848254,-500.0,0.00024657,2]
[326631402,1715167848264,-500.0,0.00024657,2]
[326631403,1715167848275,-500.0,0.00024657,2]
[326631404,1715167848285,-500.0,0.00024657,2]
[326631405,1715167848295,-508.09363551,0.00024657,2]
[326631406,1715167848304,-500.6179144,0.00024657,2]
[326631407,1715167848315,-500.0,0.00024657,2]
[326631408,1715167848324,-447.52825078,0.00024657,2]
[326631409,1715167848335,-500.0,0.00024657,2]
[326631410,1715167848344,-500.99354642,0.00024657,2]
[326631411,1715167848354,-500.0,0.00024657,2]
[326631412,1715167848364,-500.0,0.00024657,2]
[326631413,1715167848374,-500.0,0.00024657,2]
[326631414,1715167848390,-200.0,0.00024658,15]
[326631415,1715167848400,-300.0,0.00024931,2]
[326631416,1715167848410,-179.4,0.00024931,2]
[326631417,1715167848422,-500.0,0.00024931,2]
[326631418,1715167848432,-500.0,0.00024931,2]
[326631419,1715167848442,-500.0,0.00024931,2]
[326631420,1715167848452,-416.59,0.00024931,2]
[326631421,1715167848462,-500.0,0.00024931,2]
[326631422,1715167848472,-264.28,0.00024931,2]
[326631423,1715167848482,-500.0,0.00024931,2]
[326631424,1715167848492,-500.0,0.00024931,2]
[326631425,1715167848502,-500.0,0.00024931,2]
[326631426,1715167848513,-500.0,0.00024931,2]
[326631427,1715167848523,-186.18,0.00024931,2]
[326631428,1715167848533,-500.0,0.00024931,2]
[326631429,1715167848545,-500.0,0.00024931,2]
[326631430,1715167848556,-500.0,0.00024931,2]
[326631431,1715167848566,-171.64,0.00024931,2]
[326631432,1715167848576,-298.95,0.00024931,2]
[326631433,1715167848588,-500.0,0.00024931,2]
[326631434,1715167848599,-500.0,0.00024931,2]
[326631435,1715167848609,-500.0,0.00024931,2]
[326631436,1715167848619,-500.0,0.00024931,2]
[326631437,1715167848631,-441.6,0.00024931,2]
[326631438,1715167848641,-395.63,0.00024931,2]
[326631439,1715167848651,-157.28999999,0.00024931,2]
[326631440,1715167848662,-500.0,0.00024931,2]
[326631441,1715167848672,-500.0,0.00024931,2]
[326631442,1715167848682,-500.0,0.00024931,2]
[326631443,1715167848691,-416.87,0.00024931,2]
[326631444,1715167848700,-400.02877114,0.00025,2]
[326631445,1715167848710,-155.24600551,0.00025,2]
[326631446,1715167848720,-300.0,0.00025205,2]
[326631447,1715167848730,-500.0,0.00025205,2]
[326631448,1715167848739,-500.0,0.00025205,2]
[326631449,1715167848748,-500.0,0.00025205,2]
[326631450,1715167848758,-500.0,0.00025205,2]
[326631451,1715167848767,-417.82,0.00025205,2]
[326631452,1715167848778,-451.64,0.00025205,2]
[326631453,1715167848787,-500.0,0.00025205,2]
[326631454,1715167848797,-500.0,0.00025205,2]
[326631455,1715167848807,-500.0,0.00025205,2]
[326631456,1715167848816,-500.0,0.00025205,2]
[326631457,1715167848825,-500.0,0.00025205,2]
[326631458,1715167848835,-500.0,0.00025205,2]
[326631459,1715167848845,-500.0,0.00025205,2]
[326631460,1715167848854,-500.0,0.00025205,2]
[326631461,1715167848865,-500.0,0.00025205,2]
[326631462,1715167848874,-500.0,0.00025205,2]
[326631463,1715167848886,-500.0,0.00025205,2]
[326631464,1715167848895,-300.0,0.00025479,2]
[326631465,1715167848905,-500.0,0.00025479,2]
[326631466,1715167848914,-500.0,0.00025479,2]
[326631467,1715167848924,-500.0,0.00025479,2]
[326631468,1715167848934,-177.77,0.00025479,2]
[326631469,1715167848945,-500.0,0.00025479,2]
[326631470,1715167848956,-500.0,0.00025479,2]
[326631471,1715167848966,-266.57074177,0.00025479,2]
[326631472,1715167848975,-500.0,0.00025479,2]
[326631473,1715167848987,-500.0,0.00025479,2]
[326631474,1715167848997,-500.0,0.00025479,2]
[326631475,1715167849006,-326.97,0.00025479,2]
[326631476,1715167849016,-523.04,0.00025479,2]
[326631477,1715167849026,-500.0,0.00025479,2]
[326631478,1715167849035,-500.0,0.00025479,2]
[326631479,1715167849046,-500.0,0.00025479,2]
[326631480,1715167849055,-300.0,0.00025753,2]
[326631481,1715167849160,-500.0,0.00025753,2]
[326631482,1715167849173,-500.0,0.00025753,2]
[326631483,1715167849183,-500.0,0.00025753,2]
[326631484,1715167849194,-500.0,0.00025753,2]
[326631485,1715167849204,-500.0,0.00025753,2]
[326631486,1715167849214,-593.57,0.00025753,2]
[326631487,1715167849224,-387.41,0.00025753,2]
[326631488,1715167849234,-500.0,0.00025753,2]
[326631489,1715167849243,-500.0,0.00025753,2]
[326631490,1715167849253,-500.0,0.00025753,2]
[326631491,1715167849263,-500.0,0.00025753,2]
[326631492,1715167849273,-160.413977,0.00025982,2]
[326631493,1715167849282,-3966.74516132,0.00026,2]
[326631494,1715167849292,-757.7563862,0.00026,2]
[326631495,1715167849302,-3000.0,0.00026,2]
[326631496,1715167849312,-2132.3283211,0.00026,2]
[326631497,1715167849327,-3059.82715,0.00026,2]
[326631498,1715167849340,-5423.00402484,0.00026,2]
[326631499,1715167849351,-500.0,0.00026,7]
[326631500,1715167849360,-300.0,0.00026027,2]
[326631501,1715167849369,-481.04,0.00026027,2]
[326631502,1715167849379,-500.0,0.00026027,2]
[326631503,1715167849391,-468.2,0.00026027,2]
[326631504,1715167849400,-500.0,0.00026027,2]
[326631505,1715167849409,-500.0,0.00026027,2]
[326631506,1715167849419,-500.0,0.00026027,2]
[326631507,1715167849428,-500.0,0.00026027,2]
[326631508,1715167849438,-500.0,0.00026027,2]
[326631509,1715167849447,-500.0,0.00026027,2]
[326631510,1715167849457,-28.37897516,0.00026301,2]
[326631512,1715167851148,-500.0,0.00019999,2]
[326631513,1715167851158,-500.0,0.00019999,2]
[326631514,1715167851168,-271.62102484,0.00026301,2]
[326631516,1715167851178,-500.0,0.00026301,2]
[326631518,1715167851187,-500.0,0.00026301,2]
[326631519,1715167851198,-500.0,0.00026301,2]
[326631521,1715167851210,-483.61596433,0.00026301,2]
[326631523,1715167851220,-500.0,0.00026301,2]
[326631525,1715167851230,-500.0,0.00026301,2]
[326631527,1715167851239,-500.0,0.00026301,2]
[326631528,1715167851249,-300.0,0.00026575,2]
[326631530,1715167851259,-500.0,0.00026575,2]
[326631532,1715167851268,-500.0,0.00026575,2]
[326631534,1715167851277,-316.1,0.00026575,2]
[326631535,1715167851287,-500.0,0.00026575,2]
[326631536,1715167851296,-500.0,0.00026575,2]
[326631537,1715167851305,-500.0,0.00026575,2]
[326631538,1715167851315,-300.0,0.00026849,2]
[326631539,1715167851324,-500.0,0.00026849,2]
[326631540,1715167851335,-500.0,0.00026849,2]
[326631541,1715167851344,-500.0,0.00026849,2]
[326631542,1715167851354,-500.0,0.00026849,2]
[326631543,1715167851364,-500.0,0.00026849,2]
[326631544,1715167851374,-190.862313,0.00026861,2]
[326631545,1715167851384,-166.666666,0.00026986,2]
[326631546,1715167851393,-239.66751687,0.00027,10]
[326631547,1715167851403,-9383.69161612,0.00027,2]
[326631548,1715167851411,-186.81844012,0.00027,2]
[326631549,1715167851420,-198.443431,0.00027053,2]
[326631550,1715167851429,-300.0,0.00027123,2]
[326631551,1715167851439,-500.0,0.00027123,2]
[326631552,1715167851449,-500.0,0.00027123,2]
[326631553,1715167851458,-500.0,0.00027123,2]
[326631554,1715167851468,-500.0,0.00027123,2]
[326631555,1715167851477,-500.0,0.00027123,2]
[326631556,1715167851487,-5048.09880861,0.00027387,3]
[326631557,1715167854035,-2776.4985837,0.00027387,3]
[326631558,1715167854166,-2217.54214438,0.00027387,3]
[326631559,1715167854178,-1488.84881407,0.00027387,3]
[326631560,1715167854189,-941.43610251,0.00027387,3]
[326631563,1715168829722,-173.114605,0.0001589,2]
[326631564,1715168831562,-21.62745209,0.0001589,2]
[326631565,1715168849529,-204.16512491,0.0001589,2]
[326631566,1715168849553,-2.25513109,0.00017939,2]
[326631569,1715168955911,-161.48994461,0.00017939,2]
[326631570,1715168957955,-242.2279622,0.00018015,2]
[326631571,1715168959337,-160.849909,0.00018039,2]
[326631572,1715168959949,-524.11454042,0.0001818,2]
[326631573,1715168960578,-401.16231309,0.00018181,2]
[326631574,1715168961096,-24900.0,0.00018182,2]
[326631575,1715168961624,-150.0,0.00018417,2]
[326631576,1715169013601,260.3411956,0.00019178,2]
[326631581,1715169043031,-16.8989148,0.00019178,2]
[326631584,1715169043040,-22482.7750107,0.00019685,2]
[326631586,1715169043050,-469.04934454,0.00019899,2]
[326631588,1715169043060,-303.69008961,0.000199,2]
[326631590,1715169043071,-228.13515676,0.00019999,2]
[326631592,1715169043080,-500.0,0.00019999,2]
[326631594,1715169043090,-500.0,0.00019999,2]
[326631596,1715169043100,-371.92383745,0.00019999,2]
[326631598,1715169043109,-500.0,0.00019999,2]
[326631600,1715169043119,-500.0,0.00019999,2]
[326631602,1715169043128,-500.0,0.00019999,2]
[326631604,1715169043137,-500.0,0.00019999,2]
[326631606,1715169043147,-500.0,0.00019999,2]
[326631608,1715169043157,-500.0,0.00019999,2]
[326631610,1715169043172,-500.0,0.00019999,2]
[326631612,1715169043182,-500.0,0.00019999,2]
[326631614,1715169043191,-500.0,0.00019999,2]
[326631616,1715169043200,-500.0,0.00019999,2]
[326631618,1715169043212,-500.0,0.00019999,2]
[326631619,1715169043221,-500.0,0.00019999,2]
[326631621,1715169043230,-500.0,0.00019999,2]
[326631623,1715169043241,-500.0,0.00019999,2]
[326631625,1715169043255,-500.0,0.00019999,2]
[326631627,1715169043265,-500.0,0.00019999,2]
[326631629,1715169043274,-500.0,0.00019999,2]
[326631631,1715169043284,-500.0,0.00019999,2]
[326631633,1715169043294,-500.0,0.00019999,2]
[326631635,1715169043303,-500.0,0.00019999,2]
[326631637,1715169043312,-500.0,0.00019999,2]
[326631639,1715169043322,-500.0,0.00019999,2]
[326631641,1715169043331,-500.0,0.00019999,2]
[326631643,1715169043342,-187.19238374,0.00019999,2]
[326631645,1715169043351,-41043.16535445,0.0002,2]
[326631648,1715169043370,-361.8150045,0.0002,2]
[326631650,1715169043381,-3118.0382419,0.0002,2]
[326631652,1715169043393,-1736.23336736,0.0002,2]
[326631654,1715169043404,-320.765,0.0002,2]
[326631657,1715169043417,-718.0,0.0002,2]
[326631667,1715169043504,-1509.54653839,0.0002,2]
[326631669,1715169043515,-1036.62035424,0.0002,2]
[326631671,1715169043527,-570.94966305,0.0002,2]
[326631673,1715169043538,-565.90470413,0.0002,2]
[326631675,1715169043549,-1913.27393361,0.0002,2]
[326631678,1715169043561,-12371.14778619,0.0002,2]
[326631679,1715169043573,-2242.03760347,0.0002,2]
[326631681,1715169043582,-151.13730824,0.0002,2]
[326631683,1715169043592,-3054.9715797,0.00020912,2]
[326631685,1715169043601,-1577.82280114,0.00020913,2]
[326631687,1715169043611,-584.11436245,0.00020913,2]
[326631689,1715169043624,-299.48194266,0.00020913,2]
[326631835,1715169045249,-1318.27540372,0.00020913,2]
[326631838,1715169045259,-166.666666,0.00021918,2]
[326631840,1715169045268,-159.42165086,0.00022,2]
[326631842,1715169045277,-225.792577,0.00022264,2]
[326631845,1715169045286,-166.666666,0.00022431,2]
[326631847,1715169045299,-303.69008957,0.000229,2]
[326631850,1715169045313,-166.666666,0.00022944,2]
[326631852,1715169045322,-714.82665538,0.00023,2]
[326631854,1715169045333,-154.58262691,0.00023,2]
[326631856,1715169045345,-4255.74785796,0.00024,7]
[326631858,1715169045355,-500.0,0.00024657,2]
[326631860,1715169045365,-500.0,0.00024657,2]
[326631862,1715169045375,-185.68604218,0.00024657,2]
[326631864,1715169045384,-500.0,0.00024657,2]
[326631866,1715169045394,-500.0,0.00024657,2]
[326631868,1715169045403,-500.0,0.00024657,2]
[326631870,1715169045412,-534.28,0.00024657,2]
[326631872,1715169045421,-500.0,0.00024657,2]
[326631874,1715169045431,-602.85,0.00024657,2]
[326631875,1715169045440,-500.0,0.00024657,2]
[326631887,1715169045572,-500.0,0.00024657,2]
[326631889,1715169045586,-485.28242722,0.00024657,2]
[326631891,1715169045595,-500.0,0.00024657,2]
[326631892,1715169045604,-500.0,0.00024657,2]
[326631894,1715169045613,-500.0,0.00024657,2]
[326631896,1715169045624,-500.0,0.00024657,2]
[326631898,1715169045633,-500.0,0.00024657,2]
[326631899,1715169045642,-500.0,0.00024657,2]
[326631901,1715169045651,-500.0,0.00024657,2]
[326631903,1715169045660,-638.93318085,0.00024657,2]
[326631905,1715169045669,-500.0,0.00024657,2]
[326631906,1715169045678,-500.0,0.00024657,2]
[326631908,1715169045687,-500.0,0.00024657,2]
[326631910,1715169045697,-500.0,0.00024657,2]
[326631912,1715169045706,-415.89523997,0.00024657,2]
[326632210,1715169056662,-166.666666,0.00023456,2]
[326632214,1715169056671,-166.666666,0.00023969,2]
[326632217,1715169056682,-166.666666,0.00024482,2]
[326632219,1715169056692,-84.10476003,0.00024657,2]
[326632220,1715169056704,-500.0,0.00024657,2]
[326632222,1715169056715,-500.0,0.00024657,2]
[326632224,1715169056724,-500.0,0.00024657,2]
[326632227,1715169056735,-500.0,0.00024657,2]
[326632228,1715169056744,-500.0,0.00024657,2]
[326632230,1715169056754,-500.0,0.00024657,2]
[326632232,1715169056763,-500.0,0.00024657,2]
[326632234,1715169056772,-500.0,0.00024657,2]
[326632236,1715169056782,-500.0,0.00024657,2]
[326632238,1715169056791,-500.0,0.00024657,2]
[326632240,1715169056800,-500.0,0.00024657,2]
[326632242,1715169056810,-679.32,0.00024657,2]
[326632244,1715169056819,-500.0,0.00024657,2]
[326632246,1715169056828,-502.1483072,0.00024657,2]
[326632248,1715169056837,-500.0,0.00024657,2]
[326632249,1715169056847,-300.0,0.00024657,2]
[326632251,1715169056856,-500.0,0.00024657,2]
[326632253,1715169056865,-268.74017331,0.00024657,2]
[326632269,1715169682448,3456.78149574,9.999e-05,2]
[326632270,1715169684095,194.10867769,9.999e-05,2]
[326632271,1715169685296,475.84079107,9.999e-05,2]
[326632272,1715169687370,1336.45343508,9.999e-05,2]
[326632273,1715169687409,230.35686114,9.999e-05,2]
[326632274,1715169688617,904.28325309,9.999e-05,2]
[326632275,1715169689846,154.59804508,9.999e-05,2]
[326632276,1715169694256,154.59804508,9.999e-05,2]
[326632277,1715169700963,236.14409634,9.999e-05,2]
[326632278,1715169702633,281.12635245,9.999e-05,2]
[326632279,1715169702682,19221.69193316,9.999e-05,2]
[326632280,1715169702744,364.39759139,9.999e-05,2]
[326632281,1715169714777,12458.96151099,9.999e-05,2]
[326632282,1715169720414,364.39759139,9.999e-05,2]
[326632283,1715169722136,179.29269342,9.999e-05,2]
[326632284,1715169737098,364.39759139,9.999e-05,2]
[326632285,1715169758321,364.39759139,9.999e-05,2]
[326632286,1715169777680,364.39759139,9.999e-05,2]
[326632287,1715169800554,364.39759139,9.999e-05,2]
[326632288,1715169813248,355.19806788,9.999e-05,2]
[326632291,1715170028857,-154.61346633,0.00015888,2]
[326632292,1715170028881,-400.68463109,0.00015889,2]
[326632293,1715170031115,-789.750826,0.00015889,2]
[326632294,1715170037500,-146.01797799,0.00015889,2]
[326632295,1715170038082,-95.56956022,0.00015889,2]
[326632296,1715170038764,-59.04390611,0.00015889,2]
[326632297,1715170038788,-373.086463,0.0001589,2]
[326632298,1715170038809,-240.99639,0.00018039,2]
[326632299,1715170038834,-160.849909,0.00018039,2]
[326632300,1715170038855,-171.776081,0.0001941,2]
[326632301,1715170038877,-200.0,0.0002,2]
[326632302,1715170038902,-36.839201,0.00020902,2]
[326632303,1715170048131,-166.23828182,0.00020902,2]
[326632304,1715170048155,-74.75810818,0.00020911,2]
[326632397,1715170236695,-154.61346633,0.0002029,2]
[326632398,1715170236706,-306.42025241,0.00020291,2]
[326632400,1715170236716,-780.6552909,0.00020391,2]
[326632402,1715170236726,-100.11964079,0.00020911,2]
[326632405,1715170236736,-2150.09488041,0.00020911,2]
[326632408,1715170236746,-154.79866913,0.00020911,2]
[326632410,1715170236756,-192.37417711,0.00020911,2]
[326632413,1715170236767,-1893.19317664,0.00020911,2]
[326632416,1715170236777,-174.08442524,0.00020911,2]
[326632418,1715170236787,-154.7215013,0.00020911,2]